[Event "85th Tata Steel Challengers 2023"]
[Site "Wijk aan Zee"]
[Date "2023.01.22"]
[Round "8.2"]
[White "Yilmaz, Mustafa"]
[Black "Sindarov, Javokhir"]
[Result "1-0"]
[ECO "A16"]
[WhiteElo "2609"]
[BlackElo "2654"]
[Annotator "TA"]
[PlyCount "75"]
[EventDate "2023.01.10"]
[EventType "tourn"]
[EventCountry "NED"]
[SourceTitle "playchess.com"]
[Source "ChessBase"]
[SourceQuality "1"]
[TimeControl "40/6000+30:30/3000+30:900+30"]

{[%evp 9,75,45,49,49,41,18,14,19,13,14,24,13,23,41,45,12,16,0,66,34,38,33,44,-6,44,56,62,48,72,56,79,22,14,22,17,22,150,158,143,148,392,376,674,656,616,618,614,586,764,641,597,635,586,600,649,647,702,689,789,653,633,600,631,629,551,0,29996,29997]} 1. Nf3 {[%emt 0:00:03] Mikhalchishin,Adrian} Nf6 {[%emt 0:00:07]} 2. c4 {[%emt 0:00:18]} g6 {[%emt 0:00:13]} 3. Nc3 {[%emt 0:00:21]} Bg7 {[%emt 0:00:07]} 4. e4 {[%emt 0:00:50]} e5 {[%emt 0:00:07]} 5. Nxe5 {[%emt 0:01:35]} O-O {[%emt 0:00:32]} 6. Nf3 {[%emt 0:03:03] A16: English Opening: 1...Nf6 with ...d5.} Re8 $1 {[%emt 0:00:12]} 7. Bd3 $1 {[%emt 0:00:38][%mdl 4] is now more promising than 7.d3.} Nxe4 {[%emt 0:00:30]} 8. Bxe4 {[%emt 0:01:00] Black must now prevent d3. The position is equal.} Bxc3 {[%emt 0:00:10][%mdl 64] [#] Remove Defender} 9. dxc3 {[%emt 0:00:03]} Rxe4+ {[%emt 0:00:06]} 10. Be3 {[%emt 0:00:08]} d6 {[%emt 0:01:50]} 11. c5 {[%emt 0:07:52]} d5 {[%emt 0:11:45] [#]} 12. O-O $146 {[%emt 0:03:46]} ({Predecessor:} 12. h3 b6 13. O-O Bb7 14. Re1 Nd7 15. Nd2 Re8 16. Nb3 Qh4 17. Qd2 f6 18. f4 {1-0 So,W (2754)-Mamedyarov,S (2774) Croatia GCT Zagreb 2019 (6)}) 12... Bg4 {[%emt 0:48:06]} 13. Qb3 {[%emt 0:26:25]} (13. Re1 $5 {[%cal Rd1b3]}) 13... Nc6 {[%emt 0:00:08]} (13... Bxf3 $1 $11 14. gxf3 Re5) 14. Nd4 {[%emt 0:12:32]} ({Don't play} 14. Qxb7 Bxf3 15. Qxc6 (15. gxf3 Re6 $11) 15... Rg4 $11) (14. Nd2 $5 {[%cal Rd2e4]} Re6 15. Rfe1 $11) 14... Na5 {[%emt 0:01:15]} 15. Qb5 {[%emt 0:03:40]} b6 {[%emt 0:08:15]} 16. c6 {[%emt 0:08:30] Prevents Bd7.} (16. Rfe1 $14) 16... Qd6 {[%emt 0:12:05]} (16... Nc4 $11) 17. Bg5 $14 {[%emt 0:03:39]} f6 {[%emt 0:06:26]} 18. Bc1 {[%emt 0:13:26]} Bf5 {[%emt 0:04:36]} 19. b3 {[%emt 0:05:58]} a6 {[%emt 0:08:30] [#]} 20. Qd3 {[%emt 0:05:53]} ({Of course not} 20. Nxf5 gxf5 21. Qd3 Rae8 $11) (20. Qa4 $1 $16) 20... Nxc6 $11 {[%emt 0:00:48][%cal Oe4d4] Threatens to win with ...Rxd4!} 21. Nxf5 {[%emt 0:00:12]} gxf5 {[%emt 0:00:04]} 22. f3 {[%emt 0:04:45][%cal Bf2f3,Bf3f4][%mdl 32]} Ne5 {[%emt 0:01:16] White now steadily converts the win.} (22... Re7 $11) 23. Qc2 $16 {[%emt 0:02:11]} Rh4 {[%emt 0:00:07][%cal Oe5g4]} 24. Qxf5 {[%emt 0:01:38] Strongly threatening g3.} Rxh2 $2 {[%emt 0:03:17]} (24... Kf7 $16 {was necessary.}) 25. f4 $18 {[%emt 0:01:13][%cal Of4e5] fxe5! is the strong threat.} (25. Kxh2 $2 {perishes.} Nxf3+ 26. Kh3 Qh2+ 27. Kg4 Qxg2+ 28. Kh5 Qh2+ 29. Kg4 Ne5+ $19) 25... Rxg2+ $2 {[%emt 0:00:34]} (25... Rh4) 26. Kxg2 {[%emt 0:00:17]} Ng6 {[%emt 0:00:04] ...Nh4+ would be deadly.} 27. Qh3 {[%emt 0:02:40] Prevents Nh4+} d4 {[%emt 0:02:08]} 28. Bd2 {[%emt 0:00:52]} Kh8 {[%emt 0:00:40]} 29. Rae1 {[%emt 0:00:30]} dxc3 {[%emt 0:00:19]} 30. Qxc3 {[%emt 0:00:32]} Rg8 {[%emt 0:00:14]} 31. Kf3 {[%emt 0:00:44][%cal Bg2f3,Bf3e2,Be2d1][%mdl 32]} Ne7 {[%emt 0:00:52]} 32. Ke2 {[%emt 0:00:24]} Nd5 {[%emt 0:00:17]} 33. Qf3 {[%emt 0:00:49]} Qc6 {[%emt 0:00:16]} 34. Rc1 {[%emt 0:00:24]} Qd7 {[%emt 0:00:59]} 35. Kd1 {[%emt 0:00:20]} Nb4 {[%emt 0:00:32]} 36. Rc4 {[%emt 0:00:45]} Rd8 {[%emt 0:00:04][%csl Gd8][%cal Rd7d2]} 37. Qc3 {[%emt 0:00:26]} ({White should try} 37. Qe3 $18 c5 38. Re4) 37... Nd3 {[%emt 0:00:56][%mdl 8192]} (37... Qg4+ $11 38. Qf3 Qd7) 38. Qxf6+ {[%emt 0:00:12] Artfully played by Yilmaz.   Weighted Error Value: White=0.20 (precise) /Black=0.42} 1-0

[Event "85th Tata Steel Challengers 2023"]
[Site "Wijk aan Zee"]
[Date "2023.01.22"]
[Round "8.3"]
[White "Ivic, Velimir"]
[Black "Pechac, Jergus"]
[Result "1-0"]
[ECO "C67"]
[WhiteElo "2585"]
[BlackElo "2637"]
[Annotator "TA"]
[PlyCount "83"]
[EventDate "2023.01.10"]
[EventType "tourn"]
[EventCountry "NED"]
[SourceTitle "playchess.com"]
[Source "ChessBase"]
[SourceQuality "1"]
[TimeControl "40/6000+30:30/3000+30:900+30"]

{[%evp 16,83,19,-8,-5,2,6,23,13,12,19,20,21,0,14,11,0,0,2,4,54,65,83,64,65,71,71,69,68,65,73,37,47,35,42,28,28,30,24,24,61,61,81,60,118,126,117,64,51,50,70,59,48,69,66,0,20,31,609,599,594,583,555,523,5039,4702,29988,-14,29989,29990]} 1. e4 {[%emt 0:00:09]} e5 {[%emt 0:00:17]} 2. Nf3 {[%emt 0:00:06]} Nc6 {[%emt 0:00:09]} 3. Bb5 {[%emt 0:00:05]} Nf6 {[%emt 0:00:12]} 4. O-O {[%emt 0:00:20]} Nxe4 {[%emt 0:00:08]} 5. d4 {[%emt 0:00:07]} Nd6 {[%emt 0:00:17]} 6. Bxc6 {[%emt 0:00:06]} dxc6 {[%emt 0:00:07]} 7. dxe5 {[%emt 0:00:05]} Nf5 {[%emt 0:00:12]} 8. Qxd8+ {[%emt 0:00:07]} Kxd8 {[%emt 0:00:05]} 9. h3 {[%emt 0:00:55] is cutting edge theory.} Be7 {[%emt 0:00:33] C67: Ruy Lopez: Berlin Defence: 4 0-0 Nxe4.} 10. Nc3 {[%emt 0:04:04]} Nh4 {[%emt 0:00:47] And now ...Nxf3+ would win.} 11. Nxh4 {[%emt 0:02:23]} Bxh4 {[%emt 0:00:08] White has an edge.} 12. Be3 {[%emt 0:00:12]} h5 {[%emt 0:05:12] Black is weak on the dark squares} 13. Rad1+ {[%emt 0:02:21]} Ke8 $1 {[%emt 0:00:17]} 14. Ne4 $5 {[%emt 0:01:56][%mdl 4] An interesting side line.} Bf5 {[%emt 0:06:15]} 15. Ng5 $36 {[%emt 0:01:14][%mdl 2048] [#] White has some pressure.} Bxc2 $146 {[%emt 0:03:19] ...Bxg5 would be deadly.} ({Predecessor:} 15... Rf8 16. Rd4 Bxg5 17. Bxg5 f6 18. exf6 gxf6 19. Bh4 Kf7 20. Rf4 Kg6 21. Re1 Bxc2 {½-½ Anton Guijarro,D (2679)-Tari,A (2625) Tata Steel 83rd 2021 (5)}) 16. Rd4 {[%emt 0:00:15]} Bxg5 {[%emt 0:00:14]} 17. Bxg5 {[%emt 0:00:06]} c5 {[%emt 0:04:46]} (17... Rf8 $11) 18. Rd2 $1 $14 {[%emt 0:04:03]} Ba4 {[%emt 0:00:22]} 19. b3 {[%emt 0:06:17] White is more active.} Bc6 {[%emt 0:00:30]} 20. Rfd1 {[%emt 0:00:24] Threatening mate with Rd8+.} f6 {[%emt 0:00:07]} 21. exf6 {[%emt 0:00:09]} gxf6 {[%emt 0:02:35]} 22. Bxf6 {[%emt 0:00:22]} Rg8 {[%emt 0:00:38]} 23. f4 {[%emt 0:06:13]} Kf7 {[%emt 0:02:28]} 24. Bg5 {[%emt 0:01:14]} a5 {[%emt 0:01:59]} 25. Rc1 {[%emt 0:06:44]} b6 {[%emt 0:01:39]} 26. Kf2 {[%emt 0:09:05]} Rae8 {[%emt 0:01:08]} 27. Kg3 {[%emt 0:02:12]} Rg6 {[%emt 0:07:03]} 28. Rcd1 {[%emt 0:04:12]} Rge6 {[%emt 0:07:05]} 29. Kh4 $1 {[%emt 0:05:10]} Re2 {[%emt 0:11:39]} (29... Re3 $14) 30. g3 $1 $16 {[%emt 0:03:06]} a4 {[%emt 0:06:53]} 31. bxa4 {[%emt 0:12:24]} (31. Kxh5 R2e3 32. Rf1 Bb5 $17) (31. Bd8 $1 $16) 31... Bxa4 {[%emt 0:00:13]} 32. Rxe2 {[%emt 0:00:47]} Rxe2 {[%emt 0:00:10][%mdl 4096] Endgame KRB-KRB} 33. Rd8 {[%emt 0:00:50]} c4 {[%emt 0:05:41]} 34. Rc8 {[%emt 0:09:32]} c5 {[%emt 0:00:14]} (34... Rxa2 $2 35. Rxc7+ Ke6 36. Rxc4 $18) 35. f5 {[%emt 0:07:33]} ({White should play} 35. Kxh5 $14 Re8 36. Rxe8 Bxe8 37. f5) 35... c3 {[%emt 0:00:20]} (35... Rf2 $5 {[%cal Rf2f5]}) 36. Rc7+ {[%emt 0:03:14]} Kf8 $2 {[%emt 0:00:52][%mdl 8192]} (36... Kg8 $14) 37. Bh6+ $1 $18 {[%emt 0:04:05]} Kg8 {[%emt 0:00:58]} 38. f6 {[%emt 0:12:10][%cal Bf5f6,Bf6f7][%mdl 32] Intending f7+ and mate.} ({Weaker is} 38. Kxh5 Be8+ 39. Kg5 Rd2 40. Rg7+ Kf8 $16) 38... Rf2 {[%emt 0:00:12] [#]} 39. Rg7+ $1 {[%emt 0:00:09]} Kh8 {[%emt 0:00:07] [#]} 40. f7 {[%emt 0:00:34]} (40. Kxh5 Be8+ 41. Kg4 Rxf6 $17) 40... c2 {[%emt 0:00:06]} 41. Rg8+ {[%emt 0:50:29]} ({Worse is} 41. Kxh5 Rxf7 42. Rxf7 Be8 $11) 41... Kh7 {[%emt 0:50:13]} 42. Bf4 {[%emt 0:00:20] Weighted Error Value: White=0.07 (flawless) /Black=0.56} (42. f8=R $2 {is the wrong capture.} Rxf8 {[%mdl 64] Deflection} 43. Bxf8 c1=Q $19) 1-0

[Event "85th Tata Steel Challengers 2023"]
[Site "Wijk aan Zee"]
[Date "2023.01.22"]
[Round "8.4"]
[White "L'Ami, Erwin"]
[Black "Beerdsen, Thomas"]
[Result "1/2-1/2"]
[ECO "D31"]
[WhiteElo "2627"]
[BlackElo "2515"]
[Annotator "TA"]
[PlyCount "93"]
[EventDate "2023.01.10"]
[EventType "tourn"]
[EventCountry "NED"]
[SourceTitle "playchess.com"]
[Source "ChessBase"]
[SourceQuality "1"]
[TimeControl "40/6000+30:30/3000+30:900+30"]

{[%evp 9,93,2,16,15,12,8,14,-12,-4,-6,-10,-7,-7,-20,-21,-23,-19,-27,0,-10,0,-37,-37,-42,-39,-64,-58,-45,-38,-36,-16,-81,-35,-62,-44,-55,-39,-66,-11,-11,0,-31,0,-70,0,0,-8,-23,145,-237,-188,-281,-187,-248,-114,-114,-114,-97,-92,-87,-57,-67,-38,-420,0,0,156,-428,-427,-421,70,0,0,-416,0,0,0,0,0,0,0,0,0,0,0,0]} 1. d4 {[%emt 0:00:05]} d5 {[%emt 0:00:06]} 2. c4 {[%emt 0:00:10]} c6 {[%emt 0:00:06]} 3. Nc3 {[%emt 0:01:04]} Nf6 {[%emt 0:00:08]} 4. e3 {[%emt 0:00:27]} e6 {[%emt 0:07:35]} 5. b3 {[%emt 0:02:56]} Nbd7 {[%emt 0:03:15]} 6. Bb2 {[%emt 0:00:44] D31: Queen's Gambit Declined: Semi-Slav without ...Nf6 (+ Marshall Gambit and Noteboom) and Exchange Variation lines without ...Nf6.} Bd6 {[%emt 0:07:51]} 7. Bd3 $1 {[%emt 0:04:50][%mdl 4] now scores much better than the old 7.Nf3.} O-O {[%emt 0:08:28]} 8. c5 {[%emt 0:14:12]} Bc7 {[%emt 0:03:21]} 9. f4 $1 {[%emt 0:00:49]} b6 {[%emt 0:08:30]} 10. cxb6 {[%emt 0:08:09] [#]} axb6 $146 {[%emt 0:06:52][%cal Ba7b6,Bb6b5][%mdl 32]} ({Predecessor:} 10... Bxb6 11. Nf3 c5 12. O-O cxd4 13. exd4 Bb7 14. Na4 Ne4 15. b4 Bc7 16. Ne5 Nxe5 17. fxe5 {½-½ Maghsoodloo,P (2720)-Erigaisi,A (2718) Tata Steel India Rapid 2022 (7)}) 11. Nf3 {[%emt 0:01:51]} Ba6 {[%emt 0:02:10]} 12. O-O {[%emt 0:00:39]} Bxd3 {[%emt 0:06:53]} 13. Qxd3 {[%emt 0:00:30]} b5 {[%emt 0:00:28]} 14. Rfc1 {[%emt 0:05:56]} Qb8 {[%emt 0:05:35]} (14... Bd6 {keeps more tension.} 15. Ne5 Qb6 16. a4 Rfb8) 15. Rc2 {[%emt 0:09:11]} Qb7 {[%emt 0:02:08]} 16. Rac1 {[%emt 0:03:57][%cal Oc3b5]} Rfc8 {[%emt 0:02:23]} 17. h3 {[%emt 0:10:45]} h6 {[%emt 0:01:51]} 18. g4 {[%emt 0:04:46]} Bd8 {[%emt 0:05:28]} 19. g5 {[%emt 0:06:05]} hxg5 {[%emt 0:02:58]} 20. Nxg5 {[%emt 0:01:44]} (20. fxg5 $11 Nh5 21. g6) 20... Be7 {[%emt 0:02:03]} (20... Nf8 $17) 21. Kh2 {[%emt 0:06:34]} c5 {[%emt 0:04:34]} 22. dxc5 {[%emt 0:03:22]} Rxc5 {[%emt 0:05:49]} 23. Rg1 {[%emt 0:04:25]} Bf8 {[%emt 0:04:42]} (23... b4 $15 24. Na4 Rxc2+ 25. Qxc2 Rc8) 24. Rcg2 $11 {[%emt 0:01:27]} e5 {[%emt 0:06:03]} 25. b4 {[%emt 0:05:55]} (25. Nxf7 Kxf7 26. Qg6+ (26. Qf5 $2 exf4 27. b4 f3 $19) 26... Ke7 $17) 25... Rc4 {[%emt 0:01:35]} (25... e4 {simplifies} 26. Qd2 Rc4 27. a3 d4) 26. a3 {[%emt 0:00:11]} (26. Nxf7 $2 Kxf7 27. a3 (27. Qf5 $2 d4 $19) 27... Kg8 $19) (26. Qf5 $11 exf4 27. Nh7 Nxh7 28. Nxb5 (28. Nxd5 f6 $17)) 26... exf4 {[%emt 0:02:42]} (26... Re8 $15) 27. exf4 {[%emt 0:01:18]} Rxf4 {[%emt 0:00:50] ...d4 is the strong threat.} 28. Nxb5 {[%emt 0:04:12][%cal Og5f7] Strongly threatening Nxf7!} Re8 $2 {[%emt 0:03:18]} (28... Rc4 29. Nd4 $16 (29. Nh7 Ra6 $14)) (28... Qc6 $11) 29. Nd4 $2 {[%emt 0:03:38][%mdl 8192] White is more active.} (29. Nxf7 $1 $16 Ree4 30. Nh6+ (30. Nbd6 Qb8 $14) 30... Kh7 31. Nf7 Ng4+ {[%mdl 64] Discovered Attack} 32. Rxg4 (32. hxg4 Rxf7 33. Rd1 Qb6 $16) 32... Rxf7 33. Kh1) 29... Ne5 $19 {[%emt 0:01:12]} 30. Qd1 {[%emt 0:00:42]} (30. Qb5 {was called for.} Qa7 31. Nc2) 30... Qb6 {[%emt 0:01:30] Threatens to win with ...Nc4.} 31. Ndf3 {[%emt 0:02:38] [#]} (31. Rf1 $142 Bd6 32. Kh1 (32. Rxf4 Ng6 $17 {[%mdl 64] Pin})) 31... Nfg4+ {[%emt 0:02:14]} 32. Rxg4 $17 {[%emt 0:01:00]} (32. hxg4 $2 {too greedy.} Nxf3+ 33. Qxf3 Rxf3 34. Nxf3 Qh6+ 35. Kg3 Bd6+ $19) 32... Nxg4+ {[%emt 0:00:12]} 33. hxg4 {[%emt 0:01:32]} Qh6+ {[%emt 0:00:56]} 34. Kg2 {[%emt 0:00:46]} Rxg4+ {[%emt 0:00:49]} 35. Kf2 {[%emt 0:00:18]} Rf4 {[%emt 0:01:19] White must now prevent ...Be7.} 36. Qxd5 $2 {[%emt 0:00:54][%mdl 8192]} ({White should try} 36. Rg2 $15) 36... Qh2+ $2 {[%emt 0:00:59]} (36... Qh4+ $1 $19 37. Rg3 Bd6 38. Qxd6 Qh2+ {[%mdl 64] Skewer} 39. Rg2 Rxf3+ {[%mdl 64] Discovered Attack} 40. Nxf3 Qxd6 41. Bxg7 Qd3 42. Bd4+ Kh7 43. Ng5+ Kg6 44. Nf3+ Kf5) 37. Rg2 $11 {[%emt 0:00:11]} Qh1 {[%emt 0:01:18]} (37... Qh4+ $11 38. Kg1 Rxf3 {[%mdl 64] Remove Defender} 39. Nxf3 Re1+ 40. Nxe1 Qxe1+ 41. Kh2 Qh4+ 42. Kg1 Qe1+ 43. Kh2 Qh4+ 44. Kg1 Qe1+) 38. Rg1 $2 {[%emt 0:01:04]} (38. Kg3 $16 Bd6 39. Qxd6 Rg4+ {[%mdl 64] Decoy} 40. Kxg4 Qxg2+ 41. Kh4 Qxb2 42. Qd5) 38... Qh4+ $19 {[%emt 0:00:21]} 39. Rg3 {[%emt 0:00:09] [#] And now Be5 would win.} Qh1 $2 {[%emt 0:00:28]} (39... Bd6 $1 $19 40. Qxd6 Qh2+ {[%mdl 64] Skewer} 41. Rg2 Rxf3+ {[%mdl 64] Discovered Attack} 42. Nxf3 Qxd6 43. Rxg7+ Kf8) 40. Rg1 {[%emt 0:00:31]} ({Better is} 40. Bc3 $1 $14) 40... Qh4+ $2 {[%emt 0:00:41][%mdl 8192]} (40... Qh2+ $11 41. Rg2 Qh4+ 42. Kg1 Rxf3 43. Nxf3 Re1+ 44. Nxe1 Qxe1+ 45. Kh2 Qh4+ 46. Kg1 Qe1+ 47. Kh2 Qh4+ 48. Kg1 Qe1+) 41. Rg3 {[%emt 0:01:12] [#] Be5 would be deadly.} Qh2+ $2 {[%emt 0:03:58]} (41... Bd6 $1 $19 42. Qxd6 Qh2+ {[%mdl 64] Skewer} 43. Rg2 Rxf3+ {[%mdl 64] Discovered Attack} 44. Nxf3 Qxd6 45. Rxg7+ Kf8) 42. Rg2 $11 {[%emt 0:01:18] The position is equal.} Qh4+ {[%emt 0:00:17]} 43. Kg1 {[%emt 0:14:23]} Rxf3 {[%emt 0:00:17][%mdl 64] Remove Defender} 44. Nxf3 {[%emt 0:00:40]} Re1+ $1 {[%emt 0:00:05]} 45. Nxe1 {[%emt 0:00:05]} Qxe1+ {[%emt 0:00:05]} 46. Kh2 {[%emt 0:00:03]} Qh4+ {[%emt 0:00:07]} 47. Kg1 {[%emt 0:00:03] An interesting game.   Weighted Error Value: White=0.56/Black=0.64} 1/2-1/2

[Event "85th Tata Steel Challengers 2023"]
[Site "Wijk aan Zee"]
[Date "2023.01.22"]
[Round "8.5"]
[White "Warmerdam, Max"]
[Black "Tabatabaei, M. Amin"]
[Result "1/2-1/2"]
[ECO "D79"]
[WhiteElo "2616"]
[BlackElo "2686"]
[Annotator "TA"]
[PlyCount "34"]
[EventDate "2023.01.10"]
[EventType "tourn"]
[EventCountry "NED"]
[SourceTitle "playchess.com"]
[Source "ChessBase"]
[SourceQuality "1"]
[TimeControl "40/6000+30:30/3000+30:900+30"]

{[%evp 20,34,4,3,19,9,12,13,8,0,17,19,22,15,25,20,24]} 1. Nf3 {[%emt 0:00:04]} d5 {[%emt 0:03:00]} 2. g3 {[%emt 0:00:06]} g6 {[%emt 0:04:40]} 3. Bg2 {[%emt 0:00:59]} Bg7 {[%emt 0:00:08]} 4. d4 {[%emt 0:00:06]} Nf6 {[%emt 0:00:10]} 5. c4 {[%emt 0:00:03]} c6 {[%emt 0:00:16]} 6. cxd5 {[%emt 0:00:24]} cxd5 {[%emt 0:00:07]} 7. Nc3 {[%emt 0:00:04]} O-O {[%emt 0:01:03]} 8. Ne5 {[%emt 0:00:05]} e6 {[%emt 0:05:22]} 9. O-O {[%emt 0:00:15]} Bd7 {[%emt 0:00:38]} 10. Bf4 {[%emt 0:02:25]} Nc6 {[%emt 0:16:40]} 11. Qd2 {[%emt 0:00:41]} Qb6 {[%emt 0:07:44] D79: Fianchetto Grünfeld: Symmetrical Variation (6 0-0 c6 7 cxd5 cxd5).} 12. Rfd1 {[%emt 0:03:21]} Nxe5 {[%emt 0:01:23]} 13. Bxe5 {[%emt 0:02:09] [#]} Rfc8 $146 {[%emt 0:03:15]} ({Predecessor:} 13... Rfd8 14. Rac1 Bc6 15. b3 Rd7 16. b4 Ne4 17. Nxe4 dxe4 18. Bxg7 Kxg7 19. Rc5 Rad8 {½-½ Kuljasevic,D (2569)-Kozul,Z (2601) CRO-ch 12th Opatija 2012 (8.6)}) 14. Rac1 {[%emt 0:03:32]} Bc6 {[%emt 0:00:49]} 15. h4 {[%emt 0:10:50]} a6 {[%emt 0:02:02]} 16. Rc2 {[%emt 0:04:51]} Qd8 {[%emt 0:00:30]} 17. Rdc1 {[%emt 0:17:17]} Ne8 {[%emt 0:01:58] An uneventful encounter.   Weighted Error Value: White=0.04 (flawless) /Black=0.06 (flawless)} 1/2-1/2

[Event "85th Tata Steel Challengers 2023"]
[Site "Wijk aan Zee"]
[Date "2023.01.22"]
[Round "8.6"]
[White "Roebers, Eline"]
[Black "Vaishali, Rameshbabu"]
[Result "1/2-1/2"]
[ECO "B33"]
[WhiteElo "2361"]
[BlackElo "2425"]
[Annotator "TA"]
[PlyCount "80"]
[EventDate "2023.01.10"]
[EventType "tourn"]
[EventCountry "NED"]
[SourceTitle "playchess.com"]
[Source "ChessBase"]
[SourceQuality "1"]
[TimeControl "40/6000+30:30/3000+30:900+30"]

{[%evp 29,80,12,25,7,16,0,0,0,10,17,14,16,16,16,20,14,10,8,8,10,10,-35,0,0,0,0,0,0,0,0,0,0,0,0,0,-8,-8,-8,-8,-8,-8,-8,-8,-8,-8,-8,-8,-27,-8,-8,-8,-8,-8]} 1. e4 {[%emt 0:00:03]} c5 {[%emt 0:00:22]} 2. Nf3 {[%emt 0:00:04][%cal Bg1f3,Bf3d4,Bd4b5][%mdl 32]} e6 {[%emt 0:00:05]} 3. d4 {[%emt 0:00:03]} cxd4 {[%emt 0:00:04]} 4. Nxd4 {[%emt 0:00:03]} Nf6 {[%emt 0:00:04]} 5. Nc3 {[%emt 0:00:04]} Nc6 {[%emt 0:00:03]} 6. Ndb5 {[%emt 0:00:03]} d6 {[%emt 0:00:05]} 7. Bf4 {[%emt 0:00:03]} e5 {[%emt 0:00:05]} 8. Bg5 {[%emt 0:00:04]} a6 {[%emt 0:00:06]} 9. Na3 {[%emt 0:00:04]} b5 {[%emt 0:00:04]} 10. Bxf6 {[%emt 0:00:04]} gxf6 {[%emt 0:00:04]} 11. Nd5 {[%emt 0:00:03]} f5 {[%emt 0:00:15]} 12. g3 {[%emt 0:00:05]} fxe4 {[%emt 0:00:24]} 13. Bg2 {[%emt 0:00:06]} Bg7 {[%emt 0:00:04]} 14. Bxe4 {[%emt 0:00:07]} Be6 {[%emt 0:00:33]} 15. Qh5 {[%emt 0:00:05]} Rc8 {[%emt 0:00:14] 15...Rc8 has become a bit dusty these days.} 16. O-O {[%emt 0:01:02] B33: Sicilian: Pelikan and Sveshnikov Variations.} Ne7 {[%emt 0:00:29]} 17. Nxe7 {[%emt 0:02:01]} Qxe7 {[%emt 0:00:07]} 18. Rad1 {[%emt 0:00:03]} h6 {[%emt 0:06:42] [#]} (18... Bxa2 $2 19. b3 $18) 19. Rd2 $146 {[%emt 0:33:31]} ({Predecessor:} 19. c3 O-O 20. Nc2 f5 21. Bd5 Rc5 22. Ne3 Bxd5 23. Nxd5 Qe6 24. Qf3 f4 25. Qe4 {½-½ Motylev,A (2649)-Grachev,B (2649) FIDE World Cup 2015 (1.4)}) 19... b4 {[%emt 0:11:38]} (19... Bxa2 20. b3 $16) 20. Nb1 {[%emt 0:00:30]} O-O {[%emt 0:00:21]} 21. c3 {[%emt 0:07:20]} a5 {[%emt 0:02:19]} 22. a3 {[%emt 0:02:18]} f5 {[%emt 0:18:12]} 23. Bd5 {[%emt 0:00:57]} e4 {[%emt 0:06:11][%cal Be5e4,Be4e3][%mdl 32]} 24. axb4 {[%emt 0:09:53]} axb4 {[%emt 0:01:49]} 25. Rfd1 {[%emt 0:02:45]} (25. cxb4 {simplifies} Bxd5 26. Rxd5 f4 27. Nc3) 25... e3 {[%emt 0:06:05]} ({Don't do} 25... bxc3 26. Nxc3 Rcd8 27. Bxe6+ (27. Qg6 Rf6 $14) 27... Qxe6 28. Nd5 $16) 26. Bxe6+ {[%emt 0:07:50]} ({Much weaker is} 26. fxe3 Bxd5 27. Rxd5 Qxe3+ 28. Kh1 Qe4+ 29. Kg1 f4 30. Rxd6 (30. Qg4 Rc5 $17) 30... fxg3 31. Qd5+ Qxd5 32. R6xd5 gxh2+ 33. Kh1 Rf4 $17) 26... Qxe6 {[%emt 0:00:02]} 27. Rxd6 {[%emt 0:00:35]} Qe4 {[%emt 0:01:25]} 28. Qe2 {[%emt 0:23:35]} f4 {[%emt 0:07:42] [#] White must now prevent ...fxg3.} 29. f3 $1 {[%emt 0:06:09]} Qc4 {[%emt 0:24:19]} 30. R6d3 {[%emt 0:01:59]} Rcd8 {[%emt 0:06:30]} 31. cxb4 {[%emt 0:07:20] Na3 would be deadly.} Rxd3 {[%emt 0:02:26]} 32. Rxd3 {[%emt 0:03:24]} Qc1+ {[%emt 0:05:43]} 33. Rd1 {[%emt 0:02:40]} Qxb2 {[%emt 0:00:14]} 34. Qxb2 {[%emt 0:01:10]} Bxb2 $11 {[%emt 0:00:02][%mdl 4096] Endgame KRB-KRN} 35. Kf1 {[%emt 0:01:13]} fxg3 {[%emt 0:09:47]} 36. hxg3 {[%emt 0:00:22]} Rxf3+ {[%emt 0:00:07]} 37. Ke2 {[%emt 0:00:04]} Rxg3 {[%emt 0:00:05]} 38. b5 {[%emt 0:00:20]} Be5 {[%emt 0:01:30]} 39. Na3 {[%emt 0:01:01]} Bf4 {[%emt 0:00:58]} 40. Nc4 {[%emt 0:00:41]} Rg2+ {[%emt 0:02:02] An even fight not without its subleties.   Weighted Error Value: White=0.05 (flawless) /Black=0.03 (flawless)} 1/2-1/2